{"text_format":"3","workbook":"xlsx","n_sheets":4,"sheets":["Début","Dépenses","Recettes","Résumé Résultat"],"not_rendered":{"charts":1},"read":"whole","date_system":"1900"}

{"sheet":"Début","index":0,"n_rows":8,"n_cols":2,"rows_kept":8}
[null,"À PROPOS DE CE MODÈLE"]
[null,"Utilisez ce classeur Budget d’événement pour effectuer le suivi des dépenses engagées et des recettes tirées d’un événement."]
[null,"Entrez le nom de l’événement ainsi que les détails dans les tableaux des feuilles de calcul Dépenses et Recettes."]
[null,"Le total des dépenses et le total des recettes sont calculés automatiquement."]
[null,"La synthèse et le graphique Compte de résultat sont mis à jour automatiquement dans la feuille de calcul Synthèse du compte de résultat."]
[null,"Remarque : "]
[null,"Des instructions supplémentaires sont disponibles dans la colonne A de chaque feuille de calcul. Ce texte a été intentionnellement masqué. Pour supprimer le texte, sélectionnez la colonne A, puis SUPPRIMER. "]
[null,"Pour en savoir plus sur les tables, appuyez sur MAJ, puis sur F10 au sein d’une table, et sélectionnez les options TABLE et TEXTE DE REMPLACEMENT."]

{"sheet":"Dépenses","index":1,"n_rows":32,"n_cols":8,"rows_kept":32,"merged":[[0,1,0,2],[2,1,3,1]]}
["Entrez les dépenses estimées et réelles de chaque catégorie dans les tableaux correspondants de cette feuille de calcul, et le nom de l’événement en cellule D1 pour personnaliser le titre de cette feuille de calcul et des autres. Le sous-titre de cette feuille de calcul figure dans la cellule H1. Des instructions utiles sur l’utilisation de cette feuille de calcul sont disponibles dans les cellules de cette colonne. L’instruction suivante figure dans la cellule A3.","Budget d’événement pour",null,"Nom de l’événement",{"$nulls":3},"DÉPENSES"]
[]
["L’étiquette Total des dépenses figure dans la cellule de droite, l’étiquette Estimé en cellule G3 et Réel en H3.","TOTAL DES DÉPENSES",{"$nulls":4},"Estimé","Réel"]
["Le total des dépenses estimées en cellule G4 et le total des dépenses réelles en H4 sont calculés automatiquement. L’instruction suivante figure dans la cellule A6.",{"$nulls":5},{"$f":"SUM(C11,C19,C25,C32,G11,G19,G24)","v":{"v":882,"d":"882.00 €"}},{"$f":"SUM(D11,D19,D25,D32,H11,H19,H24)","v":{"v":302,"d":"302.00 €"}}]
[]
["Entrez les dépenses consacrées au site dans le tableau à partir de la cellule de droite, et les dépenses en rafraîchissements dans le tableau à partir de la cellule F6. L’instruction suivante figure dans la cellule A13.","Site","Estimé","Réel",null,"Rafraîchissements","Estimé","Réel"]
[null,"Location de salle",{"v":500,"d":"500.00 €"},null,null,"Repas"]
[null,"Personnel du site",{"$nulls":3},"Boissons",{"v":20,"d":"20.00 €"}]
[null,"Matériel",{"$nulls":3},"Linge de table",null,{"v":20,"d":"20.00 €"}]
[null,"Tables et chaises",{"$nulls":3},"Personnel et pourboires"]
[null,"Total",{"$f":"SUBTOTAL(109,DépensesSite[Estimé])","v":{"v":500,"d":"500.00 €"}},{"$f":"SUBTOTAL(103,DépensesSite[Réel])","v":{"v":0,"d":"0.00 €"}},null,"Total",{"$f":"SUBTOTAL(109,DépensesBoissons[Estimé])","v":{"v":20,"d":"20.00 €"}},{"$f":"SUBTOTAL(103,DépensesBoissons[Réel])","v":{"v":1,"d":"1.00 €"}}]
[]
["Entrez les dépenses consacrées à la décoration dans le tableau à partir de la cellule de droite, et les dépenses relatives au programme dans le tableau à partir de la cellule F13. L’instruction suivante figure dans la cellule A21.","Décorations","Estimé","Réel",null,"Programme","Estimé","Réel"]
[null,"Fleurs",{"v":200,"d":"200.00 €"},{"v":300,"d":"300.00 €"},null,"Intervenants"]
[null,"Bougies",{"$nulls":3},"Présentateurs",{"v":30,"d":"30.00 €"}]
[null,"Éclairage",{"$nulls":3},"Déplacements"]
[null,"Ballons",{"$nulls":3},"Hôtel"]
[null,"Fournitures papier",{"$nulls":3},"Autres"]
[null,"Total",{"$f":"SUBTOTAL(109,DépensesDécoration[Estimé])","v":{"v":200,"d":"200.00 €"}},{"$f":"SUBTOTAL(109,DépensesDécoration[Réel])","v":{"v":300,"d":"300.00 €"}},null,"Total",{"$f":"SUBTOTAL(109,DépensesProgramme[Estimé])","v":{"v":30,"d":"30.00 €"}},{"$f":"SUBTOTAL(103,DépensesProgramme[Réel])","v":{"v":0,"d":"0.00 €"}}]
[]
["Entrez les dépenses consacrées à la publicité dans le tableau à partir de la cellule de droite, et les dépenses relatives aux prix dans le tableau à partir de la cellule F21. L’instruction suivante figure dans la cellule A27.","Publicité","Estimé","Réel",null,"Prix","Estimé","Réel"]
[null,"Travail graphique",{"$nulls":3},"Rubans/Plaques/Coupes"]
[null,"Photocopie/Impression",{"v":20,"d":"20.00 €"},null,null,"Cadeaux",{"v":100,"d":"100.00 €"}]
[null,"Affranchissement",{"$nulls":3},"Total",{"$f":"SUBTOTAL(109,DépensesRécompenses[Estimé])","v":{"v":100,"d":"100.00 €"}},{"$f":"SUBTOTAL(103,DépensesRécompenses[Réel])","v":{"v":0,"d":"0.00 €"}}]
[null,"Total",{"$f":"SUBTOTAL(109,DépensesPublicité[Estimé])","v":{"v":20,"d":"20.00 €"}},{"$f":"SUBTOTAL(103,DépensesPublicité[Réel])","v":{"v":0,"d":"0.00 €"}}]
[]
["Entrez les dépenses diverses dans le tableau à partir de la cellule de droite.","Divers","Estimé","Réel"]
[null,"Téléphone",null,{"v":13,"d":"13.00 €"}]
[null,"Transport",{"v":12,"d":"12.00 €"}]
[null,"Papeterie"]
[null,"Télécopie"]
[null,"Total",{"$f":"SUBTOTAL(109,DépensesDiverses[Estimé])","v":{"v":12,"d":"12.00 €"}},{"$f":"SUBTOTAL(103,DépensesDiverses[Réel])","v":{"v":1,"d":"1.00 €"}}]

{"sheet":"Recettes","index":2,"n_rows":29,"n_cols":7,"rows_kept":29,"merged":[[0,1,0,2],[2,1,3,1]]}
["Entrez les recettes estimées et réelles de chaque catégorie dans les tableaux correspondants de cette feuille de calcul. Le titre de cette feuille de calcul est mis à jour automatiquement dans les cellules de droite. Le sous-titre figure dans la cellule G1. Des instructions utiles sur l’utilisation de cette feuille de calcul sont disponibles dans les cellules de cette colonne. L’instruction suivante figure dans la cellule A3.",{"$f":"Dépenses!B1","v":"Budget d’événement pour"},null,{"$f":"Dépenses!D1","v":"Nom de l’événement"},null,null,"RECETTES"]
[]
["L’étiquette Total des recettes figure dans la cellule de droite, l’étiquette Estimé en cellule F3 et Réel en G3.","TOTAL DES RECETTES",{"$nulls":3},"Estimé","Réel"]
["Le total des recettes estimées est calculé automatiquement en cellule F4 et le total des recettes réelles en G4.",{"$nulls":4},{"$f":"SUM(Entrées[[#Totals],[Revenus estimés]],AnnoncesDansProgramme[[#Totals],[Revenus estimés]],ExposantsEtVendeurs[[#Totals],[Revenus estimés]],VenteArticles[[#Totals],[Revenus estimés]])","v":{"v":1936,"d":"1,936.00 €"}},{"$f":"SUM(Entrées[[#Totals],[Revenus réels]],AnnoncesDansProgramme[[#Totals],[Revenus réels]],ExposantsEtVendeurs[[#Totals],[Revenus réels]],VenteArticles[[#Totals],[Recettes réelles]])","v":{"v":1831,"d":"1,831.00 €"}}]
["L’étiquette Entrées se trouve dans la cellule de droite.","ENTRÉES"]
["Entrez le nombre d’entrées estimé et réel avec le prix des billets dans le tableau à partir de la cellule de droite. Les recettes estimées et réelles issues des entrées sont calculées automatiquement. L’instruction suivante figure dans la cellule A11.","Nombre estimé","Nombre réel","Type","Prix","Revenus estimés","Revenus réels"]
[null,300,278,"Adultes",{"v":5,"d":"5.00 €"},{"$f":"B7*E7","v":{"v":1500,"d":"1,500.00 €"}},{"$f":"C7*E7","v":{"v":1390,"d":"1,390.00 €"}}]
[null,197,195,"Enfants @",{"v":2,"d":"2.00 €"},{"$f":"B8*E8","v":{"v":394,"d":"394.00 €"}},{"$f":"C8*E8","v":{"v":390,"d":"390.00 €"}}]
[null,42,51,"Autres",{"v":1,"d":"1.00 €"},{"$f":"B9*E9","v":{"v":42,"d":"42.00 €"}},{"$f":"C9*E9","v":{"v":51,"d":"51.00 €"}}]
[null,"Total",{"$nulls":3},{"$f":"SUBTOTAL(109,Entrées[Revenus estimés])","v":{"v":1936,"d":"1,936.00 €"}},{"$f":"SUBTOTAL(109,Entrées[Revenus réels])","v":{"v":1831,"d":"1,831.00 €"}}]
["L’étiquette Publicités dans le programme se trouve dans la cellule de droite.","PUBLICITÉS DANS LE PROGRAMME"]
["Entrez le nombre estimé et réel de publicités dans le programme ainsi que leur prix dans le tableau à partir de la cellule de droite. Les recettes estimées et réelles issues des publicités sont calculées automatiquement. L’instruction suivante figure dans la cellule A17.","Nombre estimé","Nombre réel","Type","Prix","Revenus estimés","Revenus réels"]
[null,12,null,"Couverture",null,{"$f":"B13*E13","v":{"v":0,"d":"0.00 €"}},{"$f":"C13*E13","v":{"v":0,"d":"0.00 €"}}]
[null,null,158,"Demi-page",null,{"$f":"B14*E14","v":{"v":0,"d":"0.00 €"}},{"$f":"C14*E14","v":{"v":0,"d":"0.00 €"}}]
[null,4,null,"Quart de page",null,{"$f":"B15*E15","v":{"v":0,"d":"0.00 €"}},{"$f":"C15*E15","v":{"v":0,"d":"0.00 €"}}]
[null,"Total",{"$nulls":3},{"$f":"SUBTOTAL(109,AnnoncesDansProgramme[Revenus estimés])","v":{"v":0,"d":"0.00 €"}},{"$f":"SUBTOTAL(109,AnnoncesDansProgramme[Revenus réels])","v":{"v":0,"d":"0.00 €"}}]
["L’étiquette Exposants ou fournisseurs figure dans la cellule de droite.","EXPOSANTS/FOURNISSEURS"]
["Entrez le nombre estimé et réel d’exposants et de fournisseurs ainsi que le prix des stands dans le tableau commençant dans la cellule de droite. Les recettes estimées et réelles sont calculées automatiquement. L’instruction suivante figure dans la cellule A23.","Nombre estimé","Nombre réel","Type","Prix","Revenus estimés","Revenus réels"]
[null,23,null,"Grands stands",null,{"$f":"B19*E19","v":{"v":0,"d":"0.00 €"}},{"$f":"C19*E19","v":{"v":0,"d":"0.00 €"}}]
[null,354,null,"Stands moyens @",null,{"$f":"B20*E20","v":{"v":0,"d":"0.00 €"}},{"$f":"C20*E20","v":{"v":0,"d":"0.00 €"}}]
[null,56,null,"Petits stands",null,{"$f":"B21*E21","v":{"v":0,"d":"0.00 €"}},{"$f":"C21*E21","v":{"v":0,"d":"0.00 €"}}]
[null,"Total",{"$nulls":3},{"$f":"SUBTOTAL(109,ExposantsEtVendeurs[Revenus estimés])","v":{"v":0,"d":"0.00 €"}},{"$f":"SUBTOTAL(109,ExposantsEtVendeurs[Revenus réels])","v":{"v":0,"d":"0.00 €"}}]
["L’étiquette Vente d’articles se trouve dans la cellule de droite.","VENTE D’ARTICLES"]
["Entrez le nombre estimé et réel d’articles vendus ainsi que leur prix dans le tableau à partir de la cellule de droite. Les recettes estimées et réelles sont calculées automatiquement.","Nombre estimé","Nombre réel","Type","Prix","Revenus estimés","Recettes réelles"]
[{"$nulls":3},"Articles",null,{"$f":"B25*E25","v":{"v":0,"d":"0.00 €"}},{"$f":"C25*E25","v":{"v":0,"d":"0.00 €"}}]
[null,123,null,"Articles @",null,{"$f":"B26*E26","v":{"v":0,"d":"0.00 €"}},{"$f":"C26*E26","v":{"v":0,"d":"0.00 €"}}]
[{"$nulls":3},"Articles @",null,{"$f":"B27*E27","v":{"v":0,"d":"0.00 €"}},{"$f":"C27*E27","v":{"v":0,"d":"0.00 €"}}]
[null,13,null,"Articles",null,{"$f":"B28*E28","v":{"v":0,"d":"0.00 €"}},{"$f":"C28*E28","v":{"v":0,"d":"0.00 €"}}]
[null,"Total",{"$nulls":3},{"$f":"SUBTOTAL(109,VenteArticles[Revenus estimés])","v":{"v":0,"d":"0.00 €"}},{"$f":"SUBTOTAL(109,VenteArticles[Recettes réelles])","v":{"v":0,"d":"0.00 €"}}]

{"sheet":"Résumé Résultat","index":3,"n_rows":8,"n_cols":7,"rows_kept":8,"merged":[[0,1,0,2]]}
["La synthèse et le graphique Compte de résultat illustrant le total des recettes et des dépenses sont mis à jour automatiquement dans cette feuille de calcul. Le titre de cette feuille de calcul est mis à jour automatiquement dans les cellules de droite. Le sous-titre figure dans les cellules G1 et G2. Des instructions utiles sur l’utilisation de cette feuille de calcul sont disponibles dans les cellules de cette colonne. L’instruction suivante figure dans la cellule A3.",{"$f":"Dépenses!B1","v":"Budget d’événement pour"},null,{"$f":"Dépenses!D1","v":"Nom de l’événement"},null,null,"RÉSUMÉ"]
[{"$nulls":6},"résultat"]
["Un histogramme comparant les recettes et dépenses estimées et réelles figure dans la cellule E3.",{"$nulls":3},"Un histogramme comparant les recettes et dépenses estimées et réelles figure dans cette cellule."]
["Le tableau Synthèse commençant à la cellule de droite est automatiquement mis à jour. L’instruction suivante figure dans la cellule A8."," Total","Estimé","Réel"]
[null,"Total des recettes",{"$f":"Recettes!F10","v":{"v":1936,"d":"1,936.00 €"}},{"$f":"Recettes!F4","v":{"v":1936,"d":"1,936.00 €"}}]
[null,"Total des dépenses",{"$f":"Dépenses!G4","v":{"v":882,"d":"882.00 €"}},{"$f":"Dépenses!H4","v":{"v":302,"d":"302.00 €"}}]
[]
["Le total des profits ou pertes estimé est calculé automatiquement en cellule C8 et le total des profits ou pertes réel en cellule D8.","Total des bénéfices\n(ou perte)",{"$f":"C5-C6","v":{"v":1054,"d":"1,054.00 €"}},{"$f":"D5-D6","v":{"v":1634,"d":"1,634.00 €"}}]